bitfinex/quotes_BTCUSD_20250727
["timestamp","ask_amount","ask_price","bid_price","bid_amount"]
[1753623114717,0.03939322,118290.0,118280.0,0.45370893]
[1753623114864,0.04784666,118290.0,118280.0,0.32590893]
[1753623115066,0.04784666,118290.0,118280.0,0.45370893]
[1753623115313,0.05630017,118290.0,118280.0,0.45370893]
[1753623115506,0.05630017,118290.0,118280.0,0.32590893]
[1753623115746,0.45627997,118290.0,118280.0,0.20590748]
[1753623115892,0.45627997,118290.0,118280.0,0.34216149]
[1753623116486,0.07913017,118290.0,118280.0,0.34216149]
[1753623117108,0.44782625,118290.0,118280.0,0.34216149]
[1753623117531,0.4562799,118290.0,118280.0,0.34216149]
[1753623117747,0.08758382,118290.0,118280.0,0.34216149]
[1753623117957,0.07913017,118290.0,118280.0,0.34216149]
[1753623118137,0.4562799,118290.0,118280.0,0.34216149]
[1753623120369,0.44782625,118290.0,118280.0,0.34216149]
[1753623120603,0.07067666,118290.0,118280.0,0.34216149]
[1753623120827,0.07067666,118290.0,118280.0,0.34525149]
[1753623121049,0.04784666,118290.0,118280.0,0.36816149]
[1753623121704,0.05630024,118290.0,118280.0,0.36816149]
[1753623122138,0.04784666,118290.0,118280.0,0.36816149]
[1753623122763,0.05630024,118290.0,118280.0,0.36816149]
[1753623123613,0.05630017,118290.0,118280.0,0.36816149]
[1753623123771,0.03939322,118290.0,118280.0,0.36816149]
[1753623123975,0.04784659,118290.0,118280.0,0.36816149]
[1753623124828,0.03939322,118290.0,118280.0,0.36816149]
[1753623125074,0.03939322,118290.0,118280.0,0.37029149]
[1753623126044,0.04784651,118290.0,118280.0,0.24249149]
[1753623126255,0.04784651,118290.0,118280.0,0.37029149]
[1753623126466,0.03204651,118290.0,118280.0,0.37029149]
[1753623127556,0.40919596,118290.0,118280.0,0.34525149]
[1753623127773,0.44862596,118290.0,118280.0,0.34525149]
[1753623128002,0.4570794,118290.0,118280.0,0.34525149]
[1753623128235,0.4342494,118290.0,118280.0,0.36816149]
[1753623128646,0.44270298,118290.0,118280.0,0.36816149]
[1753623128867,0.44270291,118290.0,118280.0,0.36816149]
[1753623129526,0.46553291,118290.0,118280.0,0.34525149]
[1753623129738,0.46553341,118290.0,118280.0,0.34525149]
[1753623129951,0.46553334,118290.0,118280.0,0.34525149]
[1753623130163,0.46553334,118290.0,118280.0,0.36816149]
[1753623130846,0.46553384,118290.0,118280.0,0.23190755]
[1753623131073,0.46553384,118290.0,118280.0,0.36816163]
[1753623131279,0.45708005,118290.0,118280.0,0.36816163]
[1753623131483,0.46553384,118290.0,118280.0,0.36816163]
[1753623131936,0.45708005,118290.0,118280.0,0.36816163]
[1753623132171,0.45708005,118290.0,118280.0,0.3452512]
[1753623132382,0.46553377,118290.0,118280.0,0.3452512]
[1753623132804,0.44270377,118290.0,118280.0,0.33679719]
[1753623133016,0.44270377,118290.0,118280.0,0.35970719]
[1753623133631,0.61178018,118290.0,118280.0,0.35125311]
[1753623134059,0.63461018,118290.0,118280.0,0.32525311]
[1753623134774,0.63461018,118290.0,118280.0,0.32834311]
[1753623135017,0.63461018,118290.0,118280.0,0.35125311]
[1753623135836,0.62615674,118290.0,118280.0,0.35125311]
[1753623136068,0.62615674,118290.0,118280.0,0.32525318]
[1753623136817,0.62615674,118290.0,118280.0,0.30834466]
[1753623137048,0.61770323,118290.0,118280.0,0.30834466]
[1753623137248,0.61770323,118290.0,118280.0,0.29989029]
[1753623137400,0.61770323,118290.0,118280.0,0.31679903]
[1753623138057,0.61770323,118290.0,118280.0,0.32525325]
[1753623138289,0.61770323,118290.0,118280.0,0.3337074]
[1753623138660,0.44017345,118290.0,118280.0,0.3367974]
[1753623138875,0.4401731,118290.0,118280.0,0.3597074]
[1753623139282,0.4401731,118290.0,118280.0,0.31679895]
[1753623139283,0.44862632,118290.0,118280.0,0.31679895]
[1753623139447,0.45708004,118290.0,118280.0,0.30834473]
[1753623139665,0.45708004,118290.0,118280.0,0.31679903]
[1753623139874,0.45708004,118290.0,118280.0,0.32525325]
[1753623140068,0.45708004,118290.0,118280.0,0.31679903]
[1753623140268,0.45708004,118290.0,118280.0,0.32525325]
[1753623140562,0.6261566,118290.0,118280.0,0.30834473]
[1753623140743,0.6261566,118290.0,118280.0,0.3083448]
[1753623141224,0.6261566,118290.0,118280.0,0.31679924]
[1753623141435,0.6261566,118290.0,118280.0,0.29989029]
[1753623141651,0.61770316,118290.0,118280.0,0.29989029]
[1753623141872,0.61770316,118290.0,118280.0,0.3083448]
[1753623142117,0.61770316,118290.0,118280.0,0.29989029]
[1753623142554,0.61770316,118290.0,118280.0,0.30834473]
[1753623143181,0.61770316,118290.0,118280.0,0.3252534]
[1753623143400,0.61770316,118290.0,118280.0,0.3283434]
[1753623143614,0.61770316,118290.0,118280.0,0.3492534]
[1753623143823,0.62770316,118290.0,118280.0,0.3397991]
[1753623144026,0.60487316,118290.0,118280.0,0.3397991]
[1753623144228,0.60487316,118290.0,118280.0,0.3482534]
[1753623144439,0.60487316,118290.0,118280.0,0.3397991]
[1753623144879,0.60487316,118290.0,118280.0,0.3482534]
[1753623145689,0.58827316,118290.0,118280.0,0.3482534]
[1753623146125,0.41919717,118290.0,118280.0,0.3482534]
[1753623146552,0.05050109,118290.0,118280.0,0.3482534]
[1753623147204,0.61957708,118290.0,118280.0,0.3482534]
[1753623147979,0.61957708,118290.0,118280.0,0.3397991]
[1753623148184,0.61957708,118290.0,118280.0,0.3482534]
[1753623148401,0.61957708,118290.0,118280.0,0.35670762]
[1753623149598,0.4420473,118290.0,118280.0,0.36516177]
[1753623149893,0.4420473,118290.0,118280.0,0.36719177]
[1753623150124,0.4420473,118290.0,118280.0,0.35873762]
[1753623150353,0.4420473,118290.0,118280.0,0.35873755]
[1753623150584,0.4420473,118290.0,118280.0,0.3502834]
[1753623150819,0.4420473,118290.0,118280.0,0.35873762]
[1753623151349,0.81919717,118290.0,118280.0,0.3502834]
[1753623151822,0.81919717,118290.0,118280.0,0.35873762]
[1753623152034,0.45050067,118290.0,118280.0,0.36719177]
[1753623152307,0.81919675,118290.0,118280.0,0.36719177]
[1753623152538,0.41919675,118290.0,118280.0,0.36719177]
[1753623152741,0.41919675,118290.0,118280.0,0.35873762]
[1753623154348,0.58827274,118290.0,118280.0,0.3418291]
[1753623154534,0.59662303,118290.0,118280.0,0.3502834]
[1753623155470,0.59662303,118290.0,118280.0,0.35873762]
[1753623155884,0.58816966,118290.0,118280.0,0.3502834]
[1753623156890,0.57971608,118290.0,118280.0,0.3418291]
[1753623157220,0.57971608,118290.0,118280.0,0.3502834]
[1753623157993,0.57971608,118290.0,118280.0,0.35873762]
[1753623158197,0.21102,118290.0,118280.0,0.35873762]
[1753623158392,0.57971608,118290.0,118280.0,0.35873762]
[1753623158927,0.56467958,118290.0,118280.0,0.35873762]
[1753623159359,0.56467958,118290.0,118280.0,0.3418291]
[1753623163203,0.56467958,118290.0,118280.0,0.3502834]
[1753623163663,0.56467958,118290.0,118280.0,0.35873762]
[1753623164007,0.56467958,118290.0,118280.0,0.3502834]
[1753623164216,0.1959835,118290.0,118280.0,0.3502834]
[1753623164440,0.56467958,118290.0,118280.0,0.3502834]
[1753623164620,0.56467958,118290.0,118280.0,0.3418291]
[1753623166438,0.56467958,118290.0,118280.0,0.3502834]
[1753623167267,0.1959835,118290.0,118280.0,0.35873762]
[1753623167483,0.56467958,118290.0,118280.0,0.36719177]
[1753623168294,0.56467958,118290.0,118280.0,0.35873762]
[1753623168938,0.56467958,118290.0,118280.0,0.3418291]
[1753623169778,0.55622586,118290.0,118280.0,0.33337473]
[1753623169991,0.54777207,118290.0,118280.0,0.33337473]
[1753623170207,0.54777207,118290.0,118280.0,0.3333748]
[1753623170418,0.54777207,118290.0,118280.0,0.1538]
[1753623170640,1.04093545,118290.0,118280.0,0.1278]
[1753623170859,0.95645815,118290.0,118280.0,0.1278]
[1753623171089,0.97195815,118290.0,118280.0,0.1278]
[1753623171327,0.98940717,118290.0,118280.0,0.1278]
[1753623173774,1.11736717,118290.0,118280.0,0.1278]
[1753623174008,1.12178375,118290.0,118280.0,0.1278]
[1753623175174,0.19364466,118280.0,118270.0,0.12891466]
[1753623175382,0.56234074,118280.0,118270.0,0.12891466]
[1753623175594,0.58645074,118280.0,118270.0,0.12891466]
[1753623176657,0.58745074,118280.0,118270.0,0.12891466]
[1753623176872,0.98745074,118280.0,118270.0,0.12891466]
[1753623177118,0.98745074,118280.0,118270.0,0.00095466]
[1753623177577,1.00589976,118280.0,118270.0,0.00095466]
[1753623178357,1.14895976,118280.0,118270.0,0.00095466]
[1753623178806,1.48895976,118280.0,118270.0,0.00095466]
[1753623179263,0.99230368,118280.0,118270.0,0.00095466]
[1753623179478,1.34589976,118280.0,118270.0,0.00400466]
[1753623179702,1.34589976,118280.0,118270.0,0.02668466]
[1753623180137,1.34589976,118280.0,118270.0,0.00095466]
[1753623180601,1.36099976,118280.0,118270.0,0.00095466]
[1753623181703,1.49127976,118280.0,118270.0,0.00095466]
[1753623182645,1.09127976,118280.0,118270.0,0.00095466]
[1753623183149,1.17575706,118280.0,118270.0,0.00095466]
[1753623183656,1.18423999,118280.0,118270.0,0.00095466]
[1753623186164,0.81554391,118280.0,118270.0,0.00095466]
[1753623186389,1.18423999,118280.0,118270.0,0.00095466]
[1753623187719,1.17575706,118280.0,118270.0,0.00095466]
[1753623188605,0.80706098,118280.0,118270.0,0.00095466]
[1753623188805,1.17575706,118280.0,118270.0,0.00095466]
[1753623189442,1.24195654,118280.0,118270.0,0.00095466]
[1753623189865,1.17575706,118280.0,118270.0,0.00095466]
[1753623190206,1.18431135,118280.0,118270.0,0.00095466]
[1753623194979,1.20971335,118280.0,118270.0,0.00095466]
[1753623195395,1.19321335,118280.0,118270.0,0.00095466]
[1753623200132,1.20891335,118280.0,118270.0,0.00095466]
[1753623200332,1.19321335,118280.0,118270.0,0.00095466]
[1753623201406,1.20904713,118280.0,118270.0,0.00095466]
[1753623202271,1.21696411,118280.0,118270.0,0.00095466]
[1753623202751,1.21696515,118280.0,118270.0,0.00095466]
[1753623205286,1.21696515,118280.0,118270.0,0.00407466]
[1753623208914,1.20086515,118280.0,118270.0,0.00407466]
[1753623211340,1.20086515,118280.0,118270.0,0.02833466]
[1753623211791,1.20089067,118280.0,118270.0,0.02833466]
[1753623212035,1.16886265,118280.0,118270.0,0.02833466]
[1753623212249,1.16886265,118280.0,118270.0,0.04333466]
[1753623212461,1.17679224,118280.0,118270.0,0.04333466]
[1753623212673,0.80809616,118280.0,118270.0,0.04333466]
[1753623212886,1.17679224,118280.0,118270.0,0.04333466]
[1753623213095,1.17679224,118280.0,118270.0,0.04540466]
[1753623215274,1.17679155,118280.0,118270.0,0.04540466]
[1753623217647,1.16093275,118280.0,118270.0,0.04540466]
[1753623218559,1.17624335,118280.0,118270.0,0.00095466]
[1753623219248,1.17624335,118280.0,118270.0,0.00407466]
[1753623223054,1.17624335,118280.0,118270.0,0.00095466]
[1753623223277,1.67941673,118280.0,118270.0,0.00095466]
[1753623223514,1.71161673,118280.0,118270.0,0.00095466]
[1753623223961,1.76161673,118280.0,118270.0,0.00095466]
[1753623224603,1.75961673,118280.0,118270.0,0.00095466]
[1753623224803,1.79434409,118280.0,118270.0,0.00095466]
[1753623225033,1.79834409,118280.0,118270.0,0.00095466]
[1753623225244,1.79833914,118280.0,118270.0,0.00095466]
[1753623227378,0.20349502,118250.0,118240.0,0.05838]
[1753623227590,0.7011111,118250.0,118240.0,0.04525]
[1753623227906,0.70552768,118250.0,118240.0,0.04525]
[1753623228621,0.70552768,118250.0,118240.0,0.04573535]
[1753623228835,0.70652768,118250.0,118240.0,0.04573535]
[1753623229738,1.67301836,118250.0,118240.0,0.00048535]
[1753623229923,1.71426733,118250.0,118240.0,0.00048535]
[1753623230141,1.34757125,118250.0,118240.0,0.00048535]
[1753623230378,1.35548659,118250.0,118240.0,0.00048535]
[1753623230581,1.36142337,118250.0,118240.0,0.00048535]
[1753623231214,0.98679051,118250.0,118240.0,0.00048535]
[1753623231422,1.35548659,118250.0,118240.0,0.00048535]
[1753623232271,1.24289428,118250.0,118240.0,0.02993535]
[1753623232488,1.15841698,118250.0,118240.0,0.06223535]
[1753623232712,1.20841698,118250.0,118240.0,0.06223535]
[1753623233405,1.15841698,118250.0,118240.0,0.06223535]
[1753623233683,1.15833698,118250.0,118240.0,0.06223535]
[1753623234319,1.16698151,118250.0,118240.0,0.06223535]
[1753623234450,1.25145881,118250.0,118240.0,0.06223535]
[1753623235819,0.88276273,118250.0,118240.0,0.06223535]
[1753623235989,1.25145881,118250.0,118240.0,0.06223535]
[1753623240866,0.7050436,118250.0,118240.0,0.23138284]
[1753623241075,0.02432939,118250.0,118240.0,0.23138284]
[1753623241300,0.20191923,118250.0,118240.0,0.23138284]
[1753623241499,0.57061531,118250.0,118240.0,0.23138284]
[1753623242156,0.69933531,118250.0,118240.0,0.23138284]
[1753623242938,0.33063923,118250.0,118240.0,0.23138284]
[1753623244383,0.32218293,118250.0,118240.0,0.23138284]
[1753623244816,0.72218293,118250.0,118240.0,0.23138284]
[1753623245252,0.59346293,118250.0,118240.0,0.23138284]
[1753623247175,0.72222293,118250.0,118240.0,0.23138284]
[1753623251179,0.59346293,118250.0,118240.0,0.23138284]
[1753623254446,0.59346293,118250.0,118240.0,0.36002284]
[1753623257647,0.58500642,118250.0,118240.0,0.36002284]
[1753623259226,0.91292089,118250.0,118240.0,0.36002284]
[1753623259881,1.04148089,118250.0,118240.0,0.36002284]
[1753623261285,0.91292089,118250.0,118240.0,0.36002284]
[1753623261500,0.91292089,118250.0,118240.0,0.14542535]
[1753623261800,0.93634089,118250.0,118240.0,0.14542535]
[1753623262238,0.53634089,118250.0,118240.0,0.14542535]
[1753623262698,0.93634089,118250.0,118240.0,0.14542535]
[1753623262906,0.93634089,118250.0,118240.0,0.14845535]
[1753623263095,1.06490089,118250.0,118240.0,0.16395535]
[1753623263291,1.16682721,118250.0,118240.0,0.00048535]
[1753623263490,1.18222721,118250.0,118240.0,0.00048535]
[1753623264035,1.16682721,118250.0,118240.0,0.00048535]
[1753623264881,1.20791838,118250.0,118240.0,0.00048535]
[1753623265294,1.12344108,118250.0,118240.0,0.00048535]
[1753623265501,1.12344108,118250.0,118240.0,0.01911535]
[1753623265743,1.10002108,118250.0,118240.0,0.04345535]
[1753623268662,1.12413108,118250.0,118240.0,0.01911535]
[1753623268862,1.12413108,118250.0,118240.0,0.01618535]
[1753623270161,1.20860838,118250.0,118240.0,0.01618535]
[1753623271375,1.20860838,118250.0,118240.0,0.01911535]
[1753623272553,1.12413108,118250.0,118240.0,0.01911535]
[1753623274192,1.10002108,118250.0,118240.0,0.01911535]
[1753623274412,1.10002108,118250.0,118240.0,0.04345535]
[1753623276453,1.12413108,118250.0,118240.0,0.04345535]
[1753623277137,1.10002108,118250.0,118240.0,0.04345535]
[1753623280389,1.12413108,118250.0,118240.0,0.04345535]
[1753623281762,1.12417108,118250.0,118240.0,0.04345535]
[1753623282567,0.73105544,118250.0,118240.0,0.04345535]
[1753623282808,1.10006108,118250.0,118240.0,0.04345535]
[1753623284236,1.10006108,118250.0,118240.0,0.05865535]
[1753623285356,1.10006108,118250.0,118240.0,0.06062535]
[1753623293394,1.10006108,118250.0,118240.0,0.04542535]
[1753623296268,1.10006108,118250.0,118240.0,0.06142535]
[1753623297039,0.73105544,118250.0,118240.0,0.06142535]
[1753623297246,1.10006108,118250.0,118240.0,0.06142535]
[1753623302684,0.73931188,118250.0,118240.0,0.23057284]
[1753623302891,1.10831752,118250.0,118240.0,0.23057284]
[1753623304435,0.97995752,118250.0,118240.0,0.23057284]
[1753623304651,0.61095188,118250.0,118240.0,0.23057284]
[1753623304866,0.97995752,118250.0,118240.0,0.23057284]
[1753623305606,0.97150108,118250.0,118240.0,0.23057284]
[1753623306633,0.60249544,118250.0,118240.0,0.23914479]
[1753623306893,0.00745658,118250.0,118240.0,0.63352168]
[1753623307119,0.00304,118250.0,118240.0,0.63352168]
[1753623308694,0.00304,118250.0,118240.0,0.71799898]
[1753623309627,0.00104,118250.0,118240.0,0.71799898]
[1753623309843,4e-05,118250.0,118240.0,0.71799898]
[1753623311448,4e-05,118250.0,118240.0,0.71899898]
[1753623312942,4e-05,118250.0,118240.0,0.34999334]
[1753623313150,4e-05,118250.0,118240.0,0.71899898]
[1753623316093,4e-05,118250.0,118240.0,0.70899898]
[1753623316733,4e-05,118250.0,118240.0,0.33999334]
[1753623317094,4e-05,118250.0,118240.0,0.70899898]
[1753623324514,4e-05,118250.0,118240.0,0.33999334]
[1753623324722,4e-05,118250.0,118240.0,0.70899898]
[1753623328882,4e-05,118250.0,118240.0,0.33999334]
[1753623329094,4e-05,118250.0,118240.0,0.70899898]
[1753623330590,4e-05,118250.0,118240.0,0.33999334]
[1753623330801,4e-05,118250.0,118240.0,0.70899898]
[1753623332939,4e-05,118250.0,118240.0,0.83747898]
[1753623333448,4e-05,118250.0,118240.0,0.46847334]
[1753623333723,4e-05,118250.0,118240.0,0.83747898]
[1753623338579,4e-05,118250.0,118240.0,0.46847334]
[1753623338794,4e-05,118250.0,118240.0,0.83747898]
[1753623343284,4e-05,118250.0,118240.0,0.46847334]
[1753623343517,4e-05,118250.0,118240.0,0.83747898]
[1753623344903,4e-05,118250.0,118240.0,1.17747898]
[1753623353012,4e-05,118250.0,118240.0,0.80847334]
[1753623353238,4e-05,118250.0,118240.0,1.17747898]
[1753623354431,4e-05,118250.0,118240.0,1.16890703]
[1753623356388,4e-05,118250.0,118240.0,1.17740687]
[1753623357338,4e-05,118250.0,118240.0,1.16890703]
[1753623358029,4e-05,118250.0,118240.0,0.79990139]
[1753623358181,4e-05,118250.0,118240.0,1.16890703]
[1753623360976,4e-05,118250.0,118240.0,1.17735601]
[1753623361374,4e-05,118250.0,118240.0,1.20250518]
[1753623365348,4e-05,118250.0,118240.0,0.83349954]
[1753623365591,4e-05,118250.0,118240.0,1.20250518]
[1753623377797,4e-05,118250.0,118240.0,0.83349954]
[1753623378014,4e-05,118250.0,118240.0,1.20250518]
[1753623392905,4e-05,118250.0,118240.0,0.83349954]
[1753623393126,4e-05,118250.0,118240.0,1.20250518]
[1753623394803,4e-05,118250.0,118240.0,1.07402518]
[1753623395050,4e-05,118250.0,118240.0,1.20230518]
[1753623398784,4e-05,118250.0,118240.0,0.83329954]
[1753623399015,4e-05,118250.0,118240.0,1.20230518]
[1753623400555,4e-05,118250.0,118240.0,1.07402518]
[1753623400744,4e-05,118250.0,118240.0,1.20234518]
[1753623405528,4e-05,118250.0,118240.0,0.83333954]
[1753623405753,4e-05,118250.0,118240.0,1.20234518]
[1753623410475,4e-05,118250.0,118240.0,1.20230518]
[1753623422320,4e-05,118250.0,118240.0,1.16870703]
[1753623422978,4e-05,118250.0,118240.0,1.04042703]
[1753623423200,4e-05,118250.0,118240.0,1.16862703]
[1753623424033,4e-05,118250.0,118240.0,1.17703107]
[1753623426037,4e-05,118250.0,118240.0,1.20178174]
[1753623434791,4e-05,118250.0,118240.0,3.04826874]
[1753623435632,4e-05,118250.0,118240.0,3.15447274]
[1753623436533,4e-05,118250.0,118240.0,2.80447274]
[1753623439894,4e-05,118250.0,118240.0,2.56856474]
[1753623441480,4e-05,118250.0,118240.0,2.54646874]
[1753623442128,4e-05,118250.0,118240.0,2.52941774]
[1753623442938,4e-05,118250.0,118240.0,1.20178174]
[1753623443177,4e-05,118250.0,118240.0,2.52941774]
[1753623443427,4e-05,118250.0,118240.0,2.1604121]
[1753623443633,4e-05,118250.0,118240.0,1.60202174]
[1753623445719,4e-05,118250.0,118240.0,1.57842174]
[1753623451419,4e-05,118250.0,118240.0,1.79543974]
[1753623453882,4e-05,118250.0,118240.0,1.20178174]
[1753623454079,4e-05,118250.0,118240.0,1.76190774]
[1753623454734,4e-05,118250.0,118240.0,1.67232774]
[1753623463553,4e-05,118250.0,118240.0,1.64412774]
[1753623464602,4e-05,118250.0,118240.0,1.99712774]
[1753623465029,4e-05,118250.0,118240.0,1.97412774]
[1753623465239,4e-05,118250.0,118240.0,1.20178174]
[1753623465659,4e-05,118250.0,118240.0,1.66712774]
[1753623465845,4e-05,118250.0,118240.0,1.69486774]
[1753623466049,4e-05,118250.0,118240.0,1.64412774]
[1753623478537,4e-05,118250.0,118240.0,1.20178174]
[1753623478741,4e-05,118250.0,118240.0,2.42127574]
[1753623478956,4e-05,118250.0,118240.0,2.39662674]
[1753623481535,4e-05,118250.0,118240.0,2.38354074]
[1753623482189,4e-05,118250.0,118240.0,2.0145351]
[1753623482401,4e-05,118250.0,118240.0,2.38354074]
[1753623484556,4e-05,118250.0,118240.0,1.18578174]
[1753623484950,4e-05,118250.0,118240.0,1.42916974]
[1753623487390,4e-05,118250.0,118240.0,1.39601503]
[1753623488661,4e-05,118250.0,118240.0,1.41181503]
[1753623489138,4e-05,118250.0,118240.0,1.04280939]
[1753623489347,4e-05,118250.0,118240.0,1.41181503]
[1753623490012,4e-05,118250.0,118240.0,1.43676212]
[1753623490220,4e-05,118250.0,118240.0,1.43976212]
[1753623491328,4e-05,118250.0,118240.0,1.44176212]
[1753623491973,4e-05,118250.0,118240.0,1.45025646]
[1753623493556,4e-05,118250.0,118240.0,3.58766646]
[1753623493757,4e-05,118250.0,118240.0,3.24406046]
[1753623494872,4e-05,118250.0,118240.0,2.62413546]
[1753623495179,4e-05,118250.0,118240.0,2.53643446]
[1753623495393,4e-05,118250.0,118240.0,2.19879946]
[1753623498358,4e-05,118250.0,118240.0,1.76067646]
[1753623498775,4e-05,118250.0,118240.0,1.20686846]
[1753623498988,4e-05,118250.0,118240.0,2.57357146]
[1753623499629,4e-05,118250.0,118240.0,2.24667146]
[1753623499842,4e-05,118250.0,118240.0,1.12301782]
[1753623500067,4e-05,118250.0,118240.0,1.05668311]
[1753623500283,4e-05,118250.0,118240.0,1.18484311]
[1753623502671,4e-05,118250.0,118240.0,1.33472811]
[1753623503837,4e-05,118250.0,118240.0,0.96572247]
[1753623504052,4e-05,118250.0,118240.0,1.18484311]
[1753623505801,4e-05,118250.0,118240.0,1.30784811]
[1753623508654,4e-05,118250.0,118240.0,1.18484311]
[1753623510697,4e-05,118250.0,118240.0,1.37748111]
[1753623511666,4e-05,118250.0,118240.0,1.18484311]
[1753623511872,4e-05,118250.0,118240.0,1.37748111]
[1753623512538,4e-05,118250.0,118240.0,1.38175211]
[1753623514716,4e-05,118250.0,118240.0,1.18484311]
[1753623525384,4e-05,118250.0,118240.0,0.81583747]
[1753623525755,4e-05,118250.0,118240.0,1.18484311]
[1753623528197,0.04005,118250.0,118240.0,1.15853311]
[1753623528448,0.01604,118250.0,118240.0,1.15853311]
[1753623528655,0.01604,118250.0,118240.0,1.18200311]
[1753623528867,0.01604,118250.0,118240.0,1.18404311]
[1753623532323,4e-05,118250.0,118240.0,1.18404311]
[1753623539906,4e-05,118250.0,118240.0,0.81503747]
[1753623540119,4e-05,118250.0,118240.0,1.18404311]
[1753623542089,4e-05,118250.0,118240.0,1.19954311]
[1753623542316,4e-05,118250.0,118240.0,1.21604311]
[1753623547646,4e-05,118250.0,118240.0,2.56993211]
[1753623547879,4e-05,118250.0,118240.0,2.51658311]
[1753623548119,4e-05,118250.0,118240.0,2.46511411]
[1753623549153,4e-05,118250.0,118240.0,2.12695411]
[1753623549746,4e-05,118250.0,118240.0,1.86790411]
[1753623550244,4e-05,118250.0,118240.0,1.21604311]
[1753623550479,4e-05,118250.0,118240.0,2.26977011]
[1753623552130,4e-05,118250.0,118240.0,1.91977011]
[1753623552357,4e-05,118250.0,118240.0,1.88532868]
[1753623553551,4e-05,118250.0,118240.0,2.25363168]
[1753623555115,4e-05,118250.0,118240.0,1.88786668]
[1753623555587,4e-05,118250.0,118240.0,1.86482568]
[1753623556790,4e-05,118250.0,118240.0,1.89013387]
[1753623560028,4e-05,118250.0,118240.0,1.89875971]
[1753623563366,4e-05,118250.0,118240.0,1.21553571]
[1753623563598,4e-05,118250.0,118240.0,2.09933871]
[1753623564881,4e-05,118250.0,118240.0,1.90743871]
[1753623571445,4e-05,118250.0,118240.0,1.95817871]
[1753623571675,4e-05,118250.0,118240.0,1.90743871]
[1753623596868,4e-05,118250.0,118240.0,2.36406371]
[1753623600589,4e-05,118250.0,118240.0,2.03223371]
[1753623602383,4e-05,118250.0,118240.0,1.58955771]
[1753623604741,4e-05,118250.0,118240.0,1.44157571]
[1753623604984,4e-05,118250.0,118240.0,1.34484271]
[1753623609480,4e-05,118250.0,118240.0,1.19903571]
[1753623609696,4e-05,118250.0,118240.0,2.29012571]
[1753623609909,4e-05,118250.0,118240.0,2.30542571]
[1753623610412,4e-05,118250.0,118240.0,2.07932571]
[1753623614466,4e-05,118250.0,118240.0,2.05401971]
[1753623615685,4e-05,118250.0,118240.0,2.10475971]
[1753623615892,4e-05,118250.0,118240.0,2.05401971]
[1753623617440,4e-05,118250.0,118240.0,2.02008568]
[1753623618209,4e-05,118250.0,118240.0,2.00154668]
[1753623619198,4e-05,118250.0,118240.0,2.02639331]
[1753623620825,4e-05,118250.0,118240.0,1.46075867]
[1753623621250,4e-05,118250.0,118240.0,1.41689031]
[1753623623176,4e-05,118250.0,118240.0,1.17436831]
[1753623623403,0.05345,118250.0,118240.0,0.77692267]
[1753623623645,0.05345,118250.0,118240.0,1.14592831]
[1753623623848,0.05345,118250.0,118240.0,1.15455933]
[1753623624089,0.05345,118250.0,118240.0,0.78555369]
[1753623624298,0.05345,118250.0,118240.0,1.15760933]
[1753623624953,4e-05,118250.0,118240.0,1.18044933]
[1753623625572,4e-05,118250.0,118240.0,1.18253933]
[1753623626238,0.03074,118250.0,118240.0,1.18253933]
[1753623626666,4e-05,118250.0,118240.0,1.18253933]
[1753623629504,4e-05,118250.0,118240.0,1.28343933]
[1753623630868,4e-05,118250.0,118240.0,1.18253933]
[1753623634829,4e-05,118250.0,118240.0,0.81353369]
[1753623635248,4e-05,118250.0,118240.0,1.18253933]
[1753623639195,4e-05,118250.0,118240.0,0.81353369]
[1753623639393,4e-05,118250.0,118240.0,1.18253933]
[1753623639814,0.05392,118250.0,118240.0,0.65747369]
[1753623640014,0.05392,118250.0,118240.0,0.78555369]
[1753623640478,0.05392,118250.0,118240.0,1.15455933]
[1753623641214,0.05392,118250.0,118240.0,1.15776933]
[1753623641812,0.05392,118250.0,118240.0,1.18060933]
[1753623641989,0.03114,118250.0,118240.0,1.18060933]
[1753623644312,0.03114,118250.0,118240.0,0.81160369]
[1753623644536,0.03114,118250.0,118240.0,1.18060933]
[1753623645909,0.05392,118250.0,118240.0,1.15455933]
[1753623646645,0.05392,118250.0,118240.0,1.15776933]
[1753623646861,0.05392,118250.0,118240.0,1.18060933]
[1753623647028,0.03114,118250.0,118240.0,1.05252933]
[1753623647267,0.03114,118250.0,118240.0,1.18060933]
[1753623647707,0.03114,118250.0,118240.0,1.18269933]
[1753623647916,0.03114,118250.0,118240.0,0.81369369]
[1753623648126,0.03114,118250.0,118240.0,1.18269933]
[1753623651175,0.03114,118250.0,118240.0,0.81369369]
[1753623651375,0.03114,118250.0,118240.0,1.18269933]
[1753623654553,0.03114,118250.0,118240.0,1.18273933]
[1753623656162,0.03114,118250.0,118240.0,1.05461933]
[1753623656367,0.03114,118250.0,118240.0,1.18273933]
[1753623657983,0.01594,118250.0,118240.0,1.18273933]
[1753623658194,0.01594,118250.0,118240.0,1.05461933]
[1753623658412,0.01594,118250.0,118240.0,0.81369369]
[1753623658626,4e-05,118250.0,118240.0,1.18269933]
[1753623660639,0.03074,118250.0,118240.0,1.18269933]
[1753623662543,0.03074,118250.0,118240.0,0.81369369]
[1753623662743,0.03074,118250.0,118240.0,1.18269933]
[1753623664378,4e-05,118250.0,118240.0,1.18269933]
[1753623670177,4e-05,118250.0,118240.0,0.81369369]
[1753623670417,4e-05,118250.0,118240.0,1.18269933]
[1753623676827,4e-05,118250.0,118240.0,0.81369369]
[1753623677239,4e-05,118250.0,118240.0,1.18269933]
[1753623680927,4e-05,118250.0,118240.0,0.81369369]
[1753623681133,4e-05,118250.0,118240.0,1.18269933]
[1753623682454,4e-05,118250.0,118240.0,1.14922168]
[1753623683896,4e-05,118250.0,118240.0,1.14900488]
[1753623686190,4e-05,118250.0,118240.0,1.17495157]
[1753623688354,4e-05,118250.0,118240.0,1.18334479]
[1753623690600,4e-05,118250.0,118240.0,0.81433915]
[1753623690868,4e-05,118250.0,118240.0,1.18334479]
[1753623697539,4e-05,118250.0,118240.0,1.19934479]
[1753623707355,4e-05,118250.0,118240.0,1.21514479]
[1753623711870,4e-05,118250.0,118240.0,1.18334479]
[1753623712138,4e-05,118250.0,118240.0,1.19944479]
[1753623712718,4e-05,118250.0,118240.0,0.83043915]
[1753623713253,4e-05,118250.0,118240.0,1.19944479]
[1753623716464,4e-05,118250.0,118240.0,1.58375043]
[1753623716931,0.04427179,118290.0,118280.0,0.19445296]
[1753623717164,0.04434179,118290.0,118280.0,0.6914986]
[1753623717400,0.04434186,118290.0,118280.0,0.7185186]
[1753623718102,0.04634186,118290.0,118280.0,0.7185186]
[1753623718586,0.04192322,118290.0,118280.0,0.7185186]
[1753623718794,0.05037659,118290.0,118280.0,0.7185186]
[1753623719010,0.04192322,118290.0,118280.0,0.7185186]
[1753623719246,0.05037651,118290.0,118280.0,0.7185186]
[1753623719679,0.02612322,118290.0,118280.0,0.7185186]